[Event "Titled Tuesday Blitz March 01 Late 2022"]
[White "Kamsky, Gata"]
[Black "Grischuk, Alexander"]
[WhiteFideId "2000024"]
[BlackFideId "4126025"]
[WhiteElo "2645"]
[BlackElo "2762"]
[Result "1-0"]
[Round "08"]
[TimeControl "180+1"]
[Date "2022.03.01"]
[WhiteClock "0:00:04"]
[BlackClock "0:00:05"]

1. e4 {[%clk 0:03:00]}  e6 {[%clk 0:02:59]} 2. Qe2 {[%clk 0:02:59]}  c5 {[%clk 0:02:58]} 3. g3 {[%clk 0:02:59]}  Nc6 {[%clk 0:02:57]} 4. Bg2 {[%clk 0:02:57]}  g6 {[%clk 0:02:42]} 5. Nf3 {[%clk 0:02:55]}  Bg7 {[%clk 0:02:41]} 6. O-O {[%clk 0:02:54]}  d6 {[%clk 0:02:38]} 7. c4 {[%clk 0:02:53]}  Nge7 {[%clk 0:02:36]} 8. Nc3 {[%clk 0:02:53]}  O-O {[%clk 0:02:35]} 9. d3 {[%clk 0:02:53]}  a6 {[%clk 0:02:34]} 10. a4 {[%clk 0:02:53]}  b6 {[%clk 0:02:33]} 11. Bf4 {[%clk 0:02:50]}  h6 {[%clk 0:01:59]} 12. h4 {[%clk 0:02:49]}  Bb7 {[%clk 0:01:52]} 13. Qd2 {[%clk 0:02:48]}  Kh7 {[%clk 0:01:50]} 14. Rab1 {[%clk 0:02:30]}  Qd7 {[%clk 0:01:49]} 15. Rfe1 {[%clk 0:02:27]}  Rae8 {[%clk 0:01:47]} 16. Be3 {[%clk 0:02:16]}  f5 {[%clk 0:01:42]} 17. d4 {[%clk 0:02:06]}  cxd4 {[%clk 0:01:24]} 18. Nxd4 {[%clk 0:02:01]}  Ne5 {[%clk 0:01:24]} 19. b3 {[%clk 0:01:50]}  Ng4 {[%clk 0:01:21]} 20. Rbd1 {[%clk 0:01:47]}  Qc8 {[%clk 0:01:00]} 21. Nde2 {[%clk 0:01:46]}  Nxe3 {[%clk 0:00:32]} 22. Qxe3 {[%clk 0:01:45]}  Rd8 {[%clk 0:00:33]} 23. Qxb6 {[%clk 0:01:25]}  f4 {[%clk 0:00:31]} 24. gxf4 {[%clk 0:01:22]}  e5 {[%clk 0:00:31]} 25. fxe5 {[%clk 0:01:11]}  Bxe5 {[%clk 0:00:32]} 26. Rd3 {[%clk 0:00:57]}  Ba8 {[%clk 0:00:29]} 27. Bh3 {[%clk 0:00:56]}  Qc5 {[%clk 0:00:25]} 28. Qxc5 {[%clk 0:00:54]}  dxc5 {[%clk 0:00:26]} 29. Red1 {[%clk 0:00:53]}  Rxd3 {[%clk 0:00:24]} 30. Rxd3 {[%clk 0:00:53]}  Nc6 {[%clk 0:00:25]} 31. Rd7+ {[%clk 0:00:40]}  Kh8 {[%clk 0:00:25]} 32. Be6 {[%clk 0:00:41]}  Nd4 {[%clk 0:00:16]} 33. Bd5 {[%clk 0:00:41]}  Nf3+ {[%clk 0:00:16]} 34. Kf1 {[%clk 0:00:39]}  Nxh4 {[%clk 0:00:15]} 35. Bxa8 {[%clk 0:00:37]}  Rxa8 {[%clk 0:00:16]} 36. Nd5 {[%clk 0:00:35]}  Rf8 {[%clk 0:00:16]} 37. a5 {[%clk 0:00:32]}  Nf3 {[%clk 0:00:16]} 38. Ne7 {[%clk 0:00:28]}  Rf6 {[%clk 0:00:15]} 39. Rb7 {[%clk 0:00:20]}  Nd2+ {[%clk 0:00:12]} 40. Kg2 {[%clk 0:00:20]}  Nxe4 {[%clk 0:00:13]} 41. f4 {[%clk 0:00:20]}  Bd6 {[%clk 0:00:13]} 42. Kf3 {[%clk 0:00:19]}  Nd2+ {[%clk 0:00:11]} 43. Kg4 {[%clk 0:00:19]}  h5+ {[%clk 0:00:10]} 44. Kg5 {[%clk 0:00:19]}  Ne4+ {[%clk 0:00:10]} 45. Kh6 {[%clk 0:00:17]}  Bxe7 {[%clk 0:00:03]} 46. Rxe7 {[%clk 0:00:17]}  Nd6 {[%clk 0:00:04]} 47. Kg5 {[%clk 0:00:15]}  Rf8 {[%clk 0:00:01]} 48. Kxg6 {[%clk 0:00:15]}  h4 {[%clk 0:00:01]} 49. Rh7+ {[%clk 0:00:14]}  Kg8 {[%clk 0:00:02]} 50. Rxh4 {[%clk 0:00:14]}  Ne4 {[%clk 0:00:02]} 51. Kh5 {[%clk 0:00:11]}  Nf6+ {[%clk 0:00:01]} 52. Kg5 {[%clk 0:00:10]}  Kf7 {[%clk 0:00:02]} 53. Kf5 {[%clk 0:00:10]}  Rb8 {[%clk 0:00:02]} 54. Nc3 {[%clk 0:00:09]}  Rxb3 {[%clk 0:00:02]} 55. Nd5 {[%clk 0:00:10]}  Ne8 {[%clk 0:00:02]} 56. Rh7+ {[%clk 0:00:09]}  Ng7+ {[%clk 0:00:02]} 57. Ke5 {[%clk 0:00:08]}  Rb1 {[%clk 0:00:02]} 58. f5 {[%clk 0:00:08]}  Re1+ {[%clk 0:00:02]} 59. Kd6 {[%clk 0:00:08]}  Kg8 {[%clk 0:00:03]} 60. Nf6+ {[%clk 0:00:07]}  Kf8 {[%clk 0:00:02]} 61. Nd7+ {[%clk 0:00:07]}  Kg8 {[%clk 0:00:01]} 62. Rh3 {[%clk 0:00:07]}  Nxf5+ {[%clk 0:00:02]} 63. Kxc5 {[%clk 0:00:08]}  Kf7 {[%clk 0:00:02]} 64. Nb8 {[%clk 0:00:08]}  Ke6 {[%clk 0:00:02]} 65. Rd3 {[%clk 0:00:06]}  Ra1 {[%clk 0:00:02]} 66. Nc6 {[%clk 0:00:06]}  Kf6 {[%clk 0:00:01]} 67. Kb6 {[%clk 0:00:06]}  Rb1+ {[%clk 0:00:01]} 68. Kxa6 {[%clk 0:00:06]}  Rc1 {[%clk 0:00:01]} 69. Kb5 {[%clk 0:00:06]}  Rb1+ {[%clk 0:00:02]} 70. Kc5 {[%clk 0:00:06]}  Ra1 {[%clk 0:00:02]} 71. Rd7 {[%clk 0:00:06]}  Ke6 {[%clk 0:00:02]} 72. Rd2 {[%clk 0:00:06]}  Ng3 {[%clk 0:00:02]} 73. Kb6 {[%clk 0:00:05]}  Ne4 {[%clk 0:00:02]} 74. Re2 {[%clk 0:00:05]}  Kf5 {[%clk 0:00:03]} 75. a6 {[%clk 0:00:05]}  Rb1+ {[%clk 0:00:03]} 76. Kc7 {[%clk 0:00:05]}  Nc5 {[%clk 0:00:03]} 77. a7 {[%clk 0:00:05]}  Ra1 {[%clk 0:00:04]} 78. Kb6 {[%clk 0:00:04]}  Nd7+ {[%clk 0:00:04]} 79. Kb5 {[%clk 0:00:04]}  Rb1+ {[%clk 0:00:05]} 80. Nb4 {[%clk 0:00:04]}  Ra1 {[%clk 0:00:04]} 81. Na6 {[%clk 0:00:05]}  Rb1+ {[%clk 0:00:04]} 82. Kc6 {[%clk 0:00:04]}  Rb6+ {[%clk 0:00:04]} 83. Kxd7 {[%clk 0:00:04]}  Rxa6 {[%clk 0:00:05]} 84. c5 {[%clk 0:00:04]}  Rxa7+ {[%clk 0:00:05]} 85. Kd6 {[%clk 0:00:04]} 1-0


[Site "https://www.chess.com"]

[Event "Titled Tuesday Blitz March 01 Late 2022"]
[White "Kaplan, Ebru"]
[Black "Winkels, Marcel"]
[WhiteFideId "6315194"]
[BlackFideId "1003887"]
[WhiteElo "1941"]
[BlackElo "1900"]
[Result "1-0"]
[Round "08"]
[TimeControl "180+1"]
[Date "2022.03.02"]
[WhiteClock "0:01:46"]
[BlackClock "0:01:20"]

1. e4 {[%clk 0:03:00]}  g6 {[%clk 0:02:58]} 2. d4 {[%clk 0:03:00]}  Bg7 {[%clk 0:02:59]} 3. Nf3 {[%clk 0:03:00]}  c6 {[%clk 0:02:57]} 4. Bd3 {[%clk 0:02:56]}  d5 {[%clk 0:02:57]} 5. e5 {[%clk 0:02:53]}  h5 {[%clk 0:02:57]} 6. c4 {[%clk 0:02:51]}  Nh6 {[%clk 0:02:54]} 7. Nc3 {[%clk 0:02:50]}  Bf5 {[%clk 0:02:51]} 8. Bxh6 {[%clk 0:02:40]}  Bxh6 {[%clk 0:02:46]} 9. Bxf5 {[%clk 0:02:39]}  gxf5 {[%clk 0:02:46]} 10. cxd5 {[%clk 0:02:37]}  cxd5 {[%clk 0:02:45]} 11. Qb3 {[%clk 0:02:37]}  e6 {[%clk 0:02:21]} 12. Qxb7 {[%clk 0:02:35]}  Nd7 {[%clk 0:02:21]} 13. Nb5 {[%clk 0:02:30]}  Rb8 {[%clk 0:02:11]} 14. Nd6+ {[%clk 0:02:25]}  Kf8 {[%clk 0:02:10]} 15. Qxa7 {[%clk 0:02:23]}  Rxb2 {[%clk 0:02:08]} 16. O-O {[%clk 0:02:19]}  Rg8 {[%clk 0:02:06]} 17. Rab1 {[%clk 0:02:12]}  Rxb1 {[%clk 0:01:28]} 18. Rxb1 {[%clk 0:02:11]}  Rg7 {[%clk 0:01:24]} 19. Rb7 {[%clk 0:02:07]}  f6 {[%clk 0:01:24]} 20. exf6 {[%clk 0:01:54]}  Nxf6 {[%clk 0:01:22]} 21. Rxg7 {[%clk 0:01:46]}  Bxg7 {[%clk 0:01:20]} 22. Qf7# {[%clk 0:01:46]} 1-0


[Site "https://www.chess.com"]

[Event "Titled Tuesday Blitz March 01 Late 2022"]
[White "Khabinets, Ivan"]
[Black "Ladan, Nicholas"]
[WhiteFideId "14115980"]
[BlackFideId "30918855"]
[WhiteElo "2114"]
[BlackElo "2366"]
[Result "1-0"]
[Round "08"]
[TimeControl "180+1"]
[Date "2022.03.02"]
[WhiteClock "0:00:50"]
[BlackClock "0:00:01"]

1. e4 {[%clk 0:03:00]}  e5 {[%clk 0:02:59]} 2. Nf3 {[%clk 0:03:00]}  Nc6 {[%clk 0:02:58]} 3. Bb5 {[%clk 0:03:00]}  a6 {[%clk 0:02:55]} 4. Ba4 {[%clk 0:03:00]}  g6 {[%clk 0:02:55]} 5. Nc3 {[%clk 0:02:54]}  Bg7 {[%clk 0:02:52]} 6. d4 {[%clk 0:02:55]}  exd4 {[%clk 0:02:51]} 7. Nd5 {[%clk 0:02:55]}  h6 {[%clk 0:02:43]} 8. O-O {[%clk 0:02:47]}  Nge7 {[%clk 0:02:42]} 9. Bf4 {[%clk 0:02:43]}  d6 {[%clk 0:02:41]} 10. Nxd4 {[%clk 0:02:38]}  O-O {[%clk 0:02:40]} 11. Nxc6 {[%clk 0:02:34]}  bxc6 {[%clk 0:02:28]} 12. Nc3 {[%clk 0:02:31]}  Rb8 {[%clk 0:02:23]} 13. Bb3 {[%clk 0:02:24]}  c5 {[%clk 0:02:16]} 14. Rb1 {[%clk 0:02:17]}  Nc6 {[%clk 0:02:07]} 15. Qd2 {[%clk 0:02:16]}  Kh7 {[%clk 0:02:06]} 16. Nd5 {[%clk 0:02:09]}  Nd4 {[%clk 0:01:52]} 17. Bc4 {[%clk 0:02:04]}  Ne6 {[%clk 0:01:26]} 18. c3 {[%clk 0:01:57]}  Nxf4 {[%clk 0:01:22]} 19. Nxf4 {[%clk 0:01:58]}  Qg5 {[%clk 0:01:17]} 20. Rbd1 {[%clk 0:01:50]}  Bg4 {[%clk 0:01:11]} 21. f3 {[%clk 0:01:47]}  Bc8 {[%clk 0:01:07]} 22. Nd5 {[%clk 0:01:44]}  c6 {[%clk 0:00:51]} 23. Ne3 {[%clk 0:01:22]}  Rxb2 {[%clk 0:00:42]} 24. Qxb2 {[%clk 0:01:19]}  Qxe3+ {[%clk 0:00:42]} 25. Kh1 {[%clk 0:01:19]}  Bxc3 {[%clk 0:00:41]} 26. Qe2 {[%clk 0:01:18]}  Qxe2 {[%clk 0:00:39]} 27. Bxe2 {[%clk 0:01:19]}  Bd4 {[%clk 0:00:39]} 28. Rb1 {[%clk 0:01:15]}  Be6 {[%clk 0:00:34]} 29. a4 {[%clk 0:01:08]}  c4 {[%clk 0:00:33]} 30. Rfd1 {[%clk 0:01:04]}  Be3 {[%clk 0:00:26]} 31. Rxd6 {[%clk 0:00:57]}  Kg7 {[%clk 0:00:18]} 32. Rxc6 {[%clk 0:00:55]}  Rd8 {[%clk 0:00:01]} 33. Bxc4 {[%clk 0:00:54]}  Bxc4 {[%clk 0:00:01]} 34. Rxc4 {[%clk 0:00:55]}  Rd2 {[%clk 0:00:02]} 35. Rc6 {[%clk 0:00:53]}  Bd4 {[%clk 0:00:02]} 36. Rxa6 {[%clk 0:00:52]}  h5 {[%clk 0:00:02]} 37. Rd6 {[%clk 0:00:51]}  h4 {[%clk 0:00:02]} 38. h3 {[%clk 0:00:50]}  Rd3 {[%clk 0:00:01]} 39. a5 {[%clk 0:00:50]}  g5 {[%clk 0:00:01]} 40. a6 {[%clk 0:00:50]} 1-0


[Site "https://www.chess.com"]

[Event "Titled Tuesday Blitz March 01 Late 2022"]
[White "Kostiukov, Alexandr"]
[Black "Ribeiro, Matheus Mendes Domingues"]
[WhiteFideId "14108100"]
[BlackFideId "324226923"]
[WhiteElo "2202"]
[BlackElo "1886"]
[Result "0-1"]
[Round "08"]
[TimeControl "180+1"]
[Date "2022.03.02"]
[WhiteClock "0:00:02"]
[BlackClock "0:01:56"]

1. g3 {[%clk 0:03:00]}  d5 {[%clk 0:02:59]} 2. Bg2 {[%clk 0:03:00]}  e6 {[%clk 0:03:00]} 3. d3 {[%clk 0:03:01]}  Nf6 {[%clk 0:03:01]} 4. e4 {[%clk 0:03:01]}  dxe4 {[%clk 0:03:01]} 5. dxe4 {[%clk 0:03:02]}  Qxd1+ {[%clk 0:03:01]} 6. Kxd1 {[%clk 0:03:03]}  Bc5 {[%clk 0:03:01]} 7. f3 {[%clk 0:03:03]}  Nc6 {[%clk 0:02:58]} 8. Nd2 {[%clk 0:03:01]}  O-O {[%clk 0:02:57]} 9. Nb3 {[%clk 0:03:01]}  Bb6 {[%clk 0:02:57]} 10. c3 {[%clk 0:02:54]}  Rd8+ {[%clk 0:02:57]} 11. Ke2 {[%clk 0:02:53]}  a5 {[%clk 0:02:56]} 12. a4 {[%clk 0:02:52]}  e5 {[%clk 0:02:54]} 13. Be3 {[%clk 0:02:51]}  Be6 {[%clk 0:02:54]} 14. Nd2 {[%clk 0:02:50]}  Rd7 {[%clk 0:02:53]} 15. Bh3 {[%clk 0:02:49]}  Bxe3 {[%clk 0:02:39]} 16. Kxe3 {[%clk 0:02:44]}  Rad8 {[%clk 0:02:38]} 17. Bxe6 {[%clk 0:01:37]}  Rd3+ {[%clk 0:02:37]} 18. Ke2 {[%clk 0:01:21]}  Rxd2+ {[%clk 0:02:38]} 19. Ke1 {[%clk 0:01:18]}  fxe6 {[%clk 0:02:38]} 20. b3 {[%clk 0:01:12]}  Rb2 {[%clk 0:02:34]} 21. Rd1 {[%clk 0:01:05]}  Rxd1+ {[%clk 0:02:30]} 22. Kxd1 {[%clk 0:01:06]}  Rxb3 {[%clk 0:02:30]} 23. Kc2 {[%clk 0:01:06]}  Ra3 {[%clk 0:02:30]} 24. Nh3 {[%clk 0:01:05]}  Rxa4 {[%clk 0:02:27]} 25. Kb3 {[%clk 0:01:03]}  b5 {[%clk 0:02:26]} 26. Ng5 {[%clk 0:00:56]}  Rc4 {[%clk 0:02:21]} 27. Nxe6 {[%clk 0:00:50]}  a4+ {[%clk 0:02:19]} 28. Kb2 {[%clk 0:00:50]}  b4 {[%clk 0:02:18]} 29. cxb4 {[%clk 0:00:46]}  Nxb4 {[%clk 0:02:19]} 30. Rd1 {[%clk 0:00:41]}  Kf7 {[%clk 0:02:14]} 31. Nd8+ {[%clk 0:00:20]}  Ke7 {[%clk 0:02:13]} 32. Nb7 {[%clk 0:00:16]}  Nd3+ {[%clk 0:02:08]} 33. Ka3 {[%clk 0:00:12]}  Rc3+ {[%clk 0:02:07]} 34. Ka2 {[%clk 0:00:09]}  Rb3 {[%clk 0:02:03]} 35. Na5 {[%clk 0:00:09]}  Nb4+ {[%clk 0:02:03]} 36. Ka1 {[%clk 0:00:09]}  Ra3+ {[%clk 0:02:00]} 37. Kb2 {[%clk 0:00:08]}  Ra2+ {[%clk 0:02:01]} 38. Kc3 {[%clk 0:00:08]}  c5 {[%clk 0:02:01]} 39. Nb7 {[%clk 0:00:02]}  Rc2# {[%clk 0:01:56]} 0-1


[Site "https://www.chess.com"]

[Event "Titled Tuesday Blitz March 01 Late 2022"]
[White "Lopez Perdomo, Juan David"]
[Black "Dobre, Claudiu-Cristian"]
[WhiteFideId "4405137"]
[BlackFideId "1211854"]
[WhiteElo "1997"]
[BlackElo "2207"]
[Result "1-0"]
[Round "08"]
[TimeControl "180+1"]
[Date "2022.03.02"]
[WhiteClock "0:00:23"]
[BlackClock "0:00:17"]

1. e4 {[%clk 0:03:00]}  c5 {[%clk 0:03:00]} 2. d4 {[%clk 0:03:01]}  cxd4 {[%clk 0:02:59]} 3. c3 {[%clk 0:03:02]}  dxc3 {[%clk 0:02:54]} 4. Nxc3 {[%clk 0:03:02]}  d6 {[%clk 0:02:51]} 5. Nf3 {[%clk 0:03:03]}  Nc6 {[%clk 0:02:50]} 6. Bc4 {[%clk 0:03:04]}  e6 {[%clk 0:02:46]} 7. O-O {[%clk 0:03:04]}  a6 {[%clk 0:02:46]} 8. Qe2 {[%clk 0:03:05]}  Nf6 {[%clk 0:02:44]} 9. Rd1 {[%clk 0:03:02]}  Qc7 {[%clk 0:02:44]} 10. Bf4 {[%clk 0:02:57]}  Be7 {[%clk 0:02:35]} 11. h3 {[%clk 0:02:43]}  O-O {[%clk 0:02:33]} 12. e5 {[%clk 0:02:43]}  dxe5 {[%clk 0:02:33]} 13. Nxe5 {[%clk 0:02:43]}  Nxe5 {[%clk 0:02:30]} 14. Bxe5 {[%clk 0:02:44]}  Qc6 {[%clk 0:02:29]} 15. Bd3 {[%clk 0:02:36]}  Rd8 {[%clk 0:02:03]} 16. Rac1 {[%clk 0:02:31]}  Qe8 {[%clk 0:02:02]} 17. Qf3 {[%clk 0:02:09]}  Ra7 {[%clk 0:01:41]} 18. Bc7 {[%clk 0:01:49]}  Rd7 {[%clk 0:01:29]} 19. Bb6 {[%clk 0:01:50]}  Ra8 {[%clk 0:01:29]} 20. Re1 {[%clk 0:00:38]}  Rd6 {[%clk 0:01:28]} 21. Bc7 {[%clk 0:00:33]}  Rc6 {[%clk 0:01:28]} 22. Be5 {[%clk 0:00:33]}  Bd7 {[%clk 0:00:58]} 23. Rcd1 {[%clk 0:00:34]}  Rb6 {[%clk 0:00:35]} 24. Ne4 {[%clk 0:00:33]}  Bc6 {[%clk 0:00:34]} 25. Bxf6 {[%clk 0:00:30]}  Bxf6 {[%clk 0:00:33]} 26. Nxf6+ {[%clk 0:00:30]}  gxf6 {[%clk 0:00:33]} 27. Qxf6 {[%clk 0:00:29]}  Qf8 {[%clk 0:00:33]} 28. Re3 {[%clk 0:00:28]}  Qe8 {[%clk 0:00:23]} 29. Qh6 {[%clk 0:00:23]}  Qf8 {[%clk 0:00:17]} 30. Rg3+ {[%clk 0:00:23]} 1-0


[Site "https://www.chess.com"]

[Event "Titled Tuesday Blitz March 01 Late 2022"]
[White "Martinez Alcantara, Jose Eduardo"]
[Black "Beerdsen, Thomas"]
[WhiteFideId "3805662"]
[BlackFideId "1030108"]
[WhiteElo "2690"]
[BlackElo "2585"]
[Result "1-0"]
[Round "08"]
[TimeControl "180+1"]
[Date "2022.03.01"]
[WhiteClock "0:00:15"]
[BlackClock "0:00:14"]

1. e4 {[%clk 0:03:00]}  e5 {[%clk 0:02:59]} 2. Nf3 {[%clk 0:02:59]}  Nc6 {[%clk 0:03:00]} 3. Bb5 {[%clk 0:02:59]}  f5 {[%clk 0:03:00]} 4. Nc3 {[%clk 0:02:55]}  fxe4 {[%clk 0:02:59]} 5. Nxe4 {[%clk 0:02:56]}  Nf6 {[%clk 0:03:00]} 6. Qe2 {[%clk 0:02:56]}  d5 {[%clk 0:02:59]} 7. Nxf6+ {[%clk 0:02:54]}  gxf6 {[%clk 0:03:00]} 8. d4 {[%clk 0:02:55]}  Bg7 {[%clk 0:03:01]} 9. dxe5 {[%clk 0:02:55]}  O-O {[%clk 0:03:01]} 10. e6 {[%clk 0:02:55]}  Re8 {[%clk 0:03:00]} 11. O-O {[%clk 0:02:53]}  Bxe6 {[%clk 0:02:59]} 12. Bf4 {[%clk 0:02:27]}  Kh8 {[%clk 0:02:40]} 13. Qd2 {[%clk 0:02:15]}  Rg8 {[%clk 0:02:33]} 14. Bg3 {[%clk 0:02:13]}  Ne5 {[%clk 0:02:21]} 15. Be2 {[%clk 0:02:04]}  c5 {[%clk 0:02:15]} 16. Rad1 {[%clk 0:01:57]}  Qe7 {[%clk 0:02:11]} 17. Nxe5 {[%clk 0:01:49]}  fxe5 {[%clk 0:02:12]} 18. c4 {[%clk 0:01:50]}  Rad8 {[%clk 0:02:05]} 19. cxd5 {[%clk 0:01:48]}  Bxd5 {[%clk 0:02:06]} 20. Qe3 {[%clk 0:01:39]}  e4 {[%clk 0:02:02]} 21. b3 {[%clk 0:01:33]}  Rge8 {[%clk 0:01:55]} 22. Bf4 {[%clk 0:01:18]}  Bc6 {[%clk 0:01:50]} 23. Bg5 {[%clk 0:01:16]}  Bf6 {[%clk 0:01:45]} 24. Bxf6+ {[%clk 0:01:17]}  Qxf6 {[%clk 0:01:46]} 25. Qxc5 {[%clk 0:01:08]}  Rxd1 {[%clk 0:01:40]} 26. Rxd1 {[%clk 0:01:02]}  e3 {[%clk 0:01:34]} 27. fxe3 {[%clk 0:00:49]}  Re5 {[%clk 0:01:29]} 28. Qd4 {[%clk 0:00:43]}  Kg7 {[%clk 0:01:19]} 29. Rf1 {[%clk 0:00:39]}  Qg5 {[%clk 0:01:17]} 30. Bf3 {[%clk 0:00:36]}  Qxe3+ {[%clk 0:01:14]} 31. Qxe3 {[%clk 0:00:36]}  Rxe3 {[%clk 0:01:15]} 32. Bxc6 {[%clk 0:00:37]}  bxc6 {[%clk 0:01:16]} 33. Rf4 {[%clk 0:00:32]}  a5 {[%clk 0:00:42]} 34. Rc4 {[%clk 0:00:25]}  Re2 {[%clk 0:00:40]} 35. Ra4 {[%clk 0:00:25]}  Re5 {[%clk 0:00:40]} 36. Kf2 {[%clk 0:00:25]}  h5 {[%clk 0:00:33]} 37. Rc4 {[%clk 0:00:24]}  Rd5 {[%clk 0:00:31]} 38. Ke3 {[%clk 0:00:22]}  Re5+ {[%clk 0:00:24]} 39. Kd3 {[%clk 0:00:22]}  Rf5 {[%clk 0:00:22]} 40. Rxc6 {[%clk 0:00:21]}  Rf2 {[%clk 0:00:22]} 41. Rc2 {[%clk 0:00:21]}  Rf1 {[%clk 0:00:22]} 42. g3 {[%clk 0:00:21]}  h4 {[%clk 0:00:17]} 43. gxh4 {[%clk 0:00:20]}  a4 {[%clk 0:00:17]} 44. bxa4 {[%clk 0:00:17]}  Rf3+ {[%clk 0:00:17]} 45. Kc4 {[%clk 0:00:17]}  Rf2 {[%clk 0:00:14]} 46. Rxf2 {[%clk 0:00:15]} 1-0


[Site "https://www.chess.com"]

[Event "Titled Tuesday Blitz March 01 Late 2022"]
[White "Maze, Sebastien"]
[Black "Gracia Alvarez, Gerardo Antonio"]
[WhiteFideId "613762"]
[BlackFideId "5109124"]
[WhiteElo "2462"]
[BlackElo "2139"]
[Result "1-0"]
[Round "08"]
[TimeControl "180+1"]
[Date "2022.03.02"]
[WhiteClock "0:00:44"]
[BlackClock "0:00:15"]

1. e4 {[%clk 0:02:35]}  c5 {[%clk 0:03:00]} 2. Nf3 {[%clk 0:02:29]}  Nc6 {[%clk 0:02:59]} 3. Bb5 {[%clk 0:02:27]}  d6 {[%clk 0:02:59]} 4. O-O {[%clk 0:02:12]}  Bd7 {[%clk 0:02:59]} 5. Re1 {[%clk 0:02:11]}  Nf6 {[%clk 0:02:59]} 6. c3 {[%clk 0:02:05]}  a6 {[%clk 0:02:59]} 7. Bf1 {[%clk 0:02:04]}  Bg4 {[%clk 0:02:58]} 8. d4 {[%clk 0:02:03]}  cxd4 {[%clk 0:02:49]} 9. cxd4 {[%clk 0:02:04]}  e5 {[%clk 0:02:49]} 10. d5 {[%clk 0:02:03]}  Nd4 {[%clk 0:02:46]} 11. Be3 {[%clk 0:02:04]}  Nxf3+ {[%clk 0:02:31]} 12. gxf3 {[%clk 0:02:05]}  Bd7 {[%clk 0:02:31]} 13. Qb3 {[%clk 0:02:04]}  b5 {[%clk 0:02:28]} 14. Nc3 {[%clk 0:02:04]}  Be7 {[%clk 0:02:22]} 15. a4 {[%clk 0:02:01]}  bxa4 {[%clk 0:02:19]} 16. Nxa4 {[%clk 0:01:59]}  O-O {[%clk 0:02:19]} 17. Nb6 {[%clk 0:01:59]}  Rb8 {[%clk 0:02:11]} 18. Rxa6 {[%clk 0:01:59]}  Nh5 {[%clk 0:02:06]} 19. Ra7 {[%clk 0:01:55]}  Bc8 {[%clk 0:01:25]} 20. Qc3 {[%clk 0:01:47]}  Bg5 {[%clk 0:01:21]} 21. Nxc8 {[%clk 0:01:37]}  Rxc8 {[%clk 0:01:20]} 22. Qd2 {[%clk 0:01:32]}  Bf4 {[%clk 0:01:18]} 23. Bh3 {[%clk 0:01:16]}  Qh4 {[%clk 0:01:00]} 24. Bxc8 {[%clk 0:01:10]}  Bxh2+ {[%clk 0:00:45]} 25. Kf1 {[%clk 0:01:06]}  Rxc8 {[%clk 0:00:29]} 26. Ke2 {[%clk 0:01:04]}  Nf4+ {[%clk 0:00:23]} 27. Bxf4 {[%clk 0:01:02]}  Bxf4 {[%clk 0:00:23]} 28. Qc3 {[%clk 0:00:50]}  Rf8 {[%clk 0:00:18]} 29. Rea1 {[%clk 0:00:49]}  f5 {[%clk 0:00:18]} 30. Ra8 {[%clk 0:00:48]}  fxe4 {[%clk 0:00:14]} 31. Rxf8+ {[%clk 0:00:46]}  Kxf8 {[%clk 0:00:15]} 32. Qc8+ {[%clk 0:00:44]}  Kf7 {[%clk 0:00:15]} 33. Qe6+ {[%clk 0:00:44]} 1-0


[Site "https://www.chess.com"]

[Event "Titled Tuesday Blitz March 01 Late 2022"]
[White "Mickiewicz, Piotr"]
[Black "Kim, Sergey"]
[WhiteFideId "1114891"]
[BlackFideId "13700570"]
[WhiteElo "2266"]
[BlackElo "2595"]
[Result "1-0"]
[Round "08"]
[TimeControl "180+1"]
[Date "2022.03.02"]
[WhiteClock "0:00:20"]
[BlackClock "0:00:09"]

1. e4 {[%clk 0:03:00]}  e5 {[%clk 0:02:58]} 2. Nf3 {[%clk 0:03:00]}  Nc6 {[%clk 0:02:59]} 3. Bb5 {[%clk 0:02:59]}  a6 {[%clk 0:02:59]} 4. Ba4 {[%clk 0:02:59]}  Nf6 {[%clk 0:02:59]} 5. O-O {[%clk 0:02:58]}  b5 {[%clk 0:02:59]} 6. Bb3 {[%clk 0:02:58]}  Bc5 {[%clk 0:03:00]} 7. d3 {[%clk 0:02:51]}  d6 {[%clk 0:03:00]} 8. Be3 {[%clk 0:02:51]}  Ba7 {[%clk 0:02:58]} 9. a4 {[%clk 0:02:49]}  b4 {[%clk 0:02:57]} 10. a5 {[%clk 0:02:48]}  O-O {[%clk 0:02:56]} 11. Nbd2 {[%clk 0:02:48]}  h6 {[%clk 0:02:54]} 12. Nc4 {[%clk 0:02:44]}  Be6 {[%clk 0:02:50]} 13. Bxa7 {[%clk 0:02:41]}  Rxa7 {[%clk 0:02:49]} 14. Re1 {[%clk 0:02:35]}  Ra8 {[%clk 0:02:41]} 15. h3 {[%clk 0:02:27]}  Re8 {[%clk 0:02:40]} 16. Ba4 {[%clk 0:02:22]}  Bd7 {[%clk 0:02:37]} 17. Ne3 {[%clk 0:02:19]}  Ne7 {[%clk 0:02:34]} 18. Bb3 {[%clk 0:02:16]}  c5 {[%clk 0:02:31]} 19. Nh4 {[%clk 0:02:14]}  Be6 {[%clk 0:02:30]} 20. Qf3 {[%clk 0:02:04]}  Bxb3 {[%clk 0:02:27]} 21. cxb3 {[%clk 0:02:04]}  Ng6 {[%clk 0:02:27]} 22. Nhf5 {[%clk 0:02:00]}  Re6 {[%clk 0:02:23]} 23. g3 {[%clk 0:01:58]}  Kh7 {[%clk 0:02:22]} 24. h4 {[%clk 0:01:58]}  Ne7 {[%clk 0:02:17]} 25. Nc4 {[%clk 0:01:55]}  g6 {[%clk 0:02:08]} 26. Nxe7 {[%clk 0:01:43]}  Qxe7 {[%clk 0:02:06]} 27. Rf1 {[%clk 0:01:39]}  Rf8 {[%clk 0:02:01]} 28. Qe2 {[%clk 0:01:22]}  Nd7 {[%clk 0:01:49]} 29. Ne3 {[%clk 0:01:20]}  Nf6 {[%clk 0:01:47]} 30. f4 {[%clk 0:01:20]}  exf4 {[%clk 0:01:42]} 31. Rxf4 {[%clk 0:01:19]}  Nh5 {[%clk 0:01:36]} 32. Rf3 {[%clk 0:01:19]}  d5 {[%clk 0:01:15]} 33. Nxd5 {[%clk 0:01:17]}  Qd6 {[%clk 0:01:14]} 34. Qf2 {[%clk 0:01:09]}  Kg7 {[%clk 0:01:01]} 35. Rf1 {[%clk 0:00:50]}  Kh8 {[%clk 0:00:46]} 36. Kg2 {[%clk 0:00:35]}  f6 {[%clk 0:00:43]} 37. g4 {[%clk 0:00:34]}  Ng7 {[%clk 0:00:40]} 38. Nxf6 {[%clk 0:00:34]}  Qd8 {[%clk 0:00:27]} 39. g5 {[%clk 0:00:30]}  h5 {[%clk 0:00:24]} 40. Nd5 {[%clk 0:00:29]}  Rxf3 {[%clk 0:00:22]} 41. Qxf3 {[%clk 0:00:30]}  Re8 {[%clk 0:00:21]} 42. Qf7 {[%clk 0:00:29]}  Qd6 {[%clk 0:00:13]} 43. Rf6 {[%clk 0:00:22]}  Qe5 {[%clk 0:00:13]} 44. Qxg6 {[%clk 0:00:21]}  Qxb2+ {[%clk 0:00:10]} 45. Rf2 {[%clk 0:00:21]}  Qe5 {[%clk 0:00:09]} 46. Nf6 {[%clk 0:00:20]} 1-0


[Site "https://www.chess.com"]

[Event "Titled Tuesday Blitz March 01 Late 2022"]
[White "Miszler, Levente"]
[Black "Dauner, Benedikt"]
[WhiteFideId "763276"]
[BlackFideId "16225899"]
[WhiteElo "1966"]
[BlackElo "2230"]
[Result "0-1"]
[Round "08"]
[TimeControl "180+1"]
[Date "2022.03.02"]
[WhiteClock "0:01:59"]
[BlackClock "0:02:12"]

1. e4 {[%clk 0:03:00]}  Nf6 {[%clk 0:02:59]} 2. e5 {[%clk 0:02:57]}  Ne4 {[%clk 0:02:59]} 3. d3 {[%clk 0:02:54]}  Nc5 {[%clk 0:02:59]} 4. d4 {[%clk 0:02:53]}  Ne6 {[%clk 0:02:59]} 5. Nf3 {[%clk 0:02:52]}  d5 {[%clk 0:02:58]} 6. Be3 {[%clk 0:02:50]}  c5 {[%clk 0:02:57]} 7. c3 {[%clk 0:02:50]}  Nc6 {[%clk 0:02:57]} 8. Be2 {[%clk 0:02:47]}  g6 {[%clk 0:02:54]} 9. O-O {[%clk 0:02:46]}  Bg7 {[%clk 0:02:54]} 10. Na3 {[%clk 0:02:31]}  cxd4 {[%clk 0:02:52]} 11. cxd4 {[%clk 0:02:32]}  O-O {[%clk 0:02:52]} 12. Rc1 {[%clk 0:02:31]}  Qa5 {[%clk 0:02:50]} 13. Qb3 {[%clk 0:02:17]}  Nc7 {[%clk 0:02:34]} 14. Bd2 {[%clk 0:02:10]}  Qb6 {[%clk 0:02:34]} 15. Nb5 {[%clk 0:02:04]}  Nxb5 {[%clk 0:02:27]} 16. Qxb5 {[%clk 0:02:05]}  Nxd4 {[%clk 0:02:16]} 17. Qxb6 {[%clk 0:02:03]}  Nxe2+ {[%clk 0:02:14]} 18. Kh1 {[%clk 0:02:02]}  axb6 {[%clk 0:02:14]} 19. Rc2 {[%clk 0:01:59]}  Bf5 {[%clk 0:02:12]} 0-1


[Site "https://www.chess.com"]